[Event "Early-Titled-Tuesday-Blitz-July-09-2024"]
[Site "Chess.com"]
[Date "2024.07.09"]
[Round "6"]
[White "Slovineanu"]
[Black "Kombinator01"]
[Result "0-1"]
[WhiteElo "2547"]
[BlackElo "2439"]
[TimeControl "180+1"]
[EndTime "9:08:16 PDT"]
[Termination "Kombinator01 won by resignation"]

1. d4 {[%clk 0:02:56.6]} 1... d5 {[%clk 0:02:58.4]} 2. Nf3 {[%clk 0:02:56]} 2...
Nf6 {[%clk 0:02:55.6]} 3. c4 {[%clk 0:02:56.4]} 3... c5 {[%clk 0:02:54.5]} 4.
cxd5 {[%clk 0:02:54.3]} 4... cxd4 {[%clk 0:02:53.9]} 5. Qxd4 {[%clk 0:02:53.6]}
5... Qxd5 {[%clk 0:02:53.7]} 6. Nc3 {[%clk 0:02:52.9]} 6... Qxd4 {[%clk
0:02:53.4]} 7. Nxd4 {[%clk 0:02:53.8]} 7... a6 {[%clk 0:02:53.4]} 8. e4 {[%clk
0:02:48.6]} 8... e5 {[%clk 0:02:52.2]} 9. Nb3 {[%clk 0:02:48.2]} 9... Nc6 {[%clk
0:02:51.7]} 10. Be3 {[%clk 0:02:37.6]} 10... Bb4 {[%clk 0:02:48.6]} 11. f3
{[%clk 0:02:35.5]} 11... Be6 {[%clk 0:02:38.5]} 12. Be2 {[%clk 0:02:32.7]} 12...
Bxb3 {[%clk 0:02:31.4]} 13. axb3 {[%clk 0:02:32.2]} 13... Nd4 {[%clk 0:02:32.3]}
14. Bd1 {[%clk 0:02:23.9]} 14... Nb5 {[%clk 0:02:20.1]} 15. Rc1 {[%clk
0:01:44.1]} 15... Rc8 {[%clk 0:02:12.4]} 16. Bd2 {[%clk 0:01:43.9]} 16... O-O
{[%clk 0:01:56.7]} 17. Be2 {[%clk 0:01:33]} 17... Nd4 {[%clk 0:01:53.8]} 18. Bc4
{[%clk 0:01:32.5]} 18... b5 {[%clk 0:01:51.9]} 19. Bd5 {[%clk 0:01:26]} 19...
Nxd5 {[%clk 0:01:48.1]} 20. exd5 {[%clk 0:01:21.9]} 20... Nxb3 {[%clk
0:01:47.4]} 21. Rd1 {[%clk 0:01:17.1]} 21... Rfd8 {[%clk 0:01:40.7]} 22. Ke2
{[%clk 0:01:08]} 22... Nd4+ {[%clk 0:01:40.2]} 23. Kd3 {[%clk 0:01:05.6]} 23...
Bxc3 {[%clk 0:01:36.7]} 24. bxc3 {[%clk 0:01:00.7]} 24... Nb3 {[%clk 0:01:33.6]}
25. Ke4 {[%clk 0:00:55.3]} 25... f6 {[%clk 0:01:21.6]} 26. Be1 {[%clk
0:00:49.5]} 26... Rc4+ {[%clk 0:01:19.8]} 27. Ke3 {[%clk 0:00:49.2]} 27... Rc5
{[%clk 0:01:12.8]} 28. Ke4 {[%clk 0:00:47]} 28... Rc4+ {[%clk 0:00:59]} 29. Ke3
{[%clk 0:00:46.6]} 29... f5 {[%clk 0:00:57.8]} 30. g3 {[%clk 0:00:45.3]} 30...
f4+ {[%clk 0:00:57]} 31. gxf4 {[%clk 0:00:44.2]} 31... exf4+ {[%clk 0:00:57.9]}
32. Ke2 {[%clk 0:00:40.6]} 32... Rc5 {[%clk 0:00:57]} 33. d6 {[%clk 0:00:19.4]}
33... Rc6 {[%clk 0:00:57.1]} 34. d7 {[%clk 0:00:11.2]} 34... Rc7 {[%clk
0:00:56.9]} 35. Rd6 {[%clk 0:00:11.8]} 35... Rcxd7 {[%clk 0:00:53.9]} 36. Rxa6
{[%clk 0:00:11.6]} 36... Re8+ {[%clk 0:00:54.3]} 37. Kf1 {[%clk 0:00:11.9]}
37... Rd1 {[%clk 0:00:54]} 38. Kf2 {[%clk 0:00:09.7]} 38... Nc5 {[%clk
0:00:53.9]} 0-1

[Event "Early-Titled-Tuesday-Blitz-July-09-2024"]
[Site "Chess.com"]
[Date "2024.07.09"]
[Round "6"]
[White "Mikasinski"]
[Black "amylazy"]
[Result "0-1"]
[WhiteElo "2686"]
[BlackElo "2513"]
[TimeControl "180+1"]
[EndTime "9:08:17 PDT"]
[Termination "amylazy won on time"]

1. e4 {[%clk 0:03:00.9]} 1... c5 {[%clk 0:02:47.2]} 2. Nf3 {[%clk 0:03:00.6]}
2... e6 {[%clk 0:02:46.9]} 3. d4 {[%clk 0:03:00.7]} 3... cxd4 {[%clk 0:02:47.8]}
4. Nxd4 {[%clk 0:03:01.2]} 4... a6 {[%clk 0:02:48.5]} 5. Be2 {[%clk 0:03:00.5]}
5... Nf6 {[%clk 0:02:41.2]} 6. Nc3 {[%clk 0:03:00.1]} 6... Qc7 {[%clk
0:02:39.6]} 7. O-O {[%clk 0:02:59.8]} 7... Be7 {[%clk 0:02:39]} 8. f4 {[%clk
0:02:59.4]} 8... d6 {[%clk 0:02:39.3]} 9. Kh1 {[%clk 0:02:59.9]} 9... Nbd7
{[%clk 0:02:39.6]} 10. Bf3 {[%clk 0:02:59.2]} 10... O-O {[%clk 0:02:38.6]} 11.
Re1 {[%clk 0:02:47.1]} 11... Rb8 {[%clk 0:02:33.1]} 12. a4 {[%clk 0:02:46.3]}
12... b6 {[%clk 0:02:28.1]} 13. e5 {[%clk 0:02:45]} 13... dxe5 {[%clk
0:02:25.3]} 14. Nc6 {[%clk 0:02:45.2]} 14... Bd6 {[%clk 0:02:18]} 15. Nxb8
{[%clk 0:02:38.6]} 15... Qxb8 {[%clk 0:02:17.7]} 16. fxe5 {[%clk 0:02:14.6]}
16... Bxe5 {[%clk 0:02:09.2]} 17. g3 {[%clk 0:02:06.4]} 17... Bb7 {[%clk
0:02:07.7]} 18. Kg2 {[%clk 0:01:59.9]} 18... Rd8 {[%clk 0:02:07.1]} 19. Qe2
{[%clk 0:01:59.5]} 19... h5 {[%clk 0:01:48.8]} 20. Bg5 {[%clk 0:01:55.6]} 20...
Rc8 {[%clk 0:01:40.2]} 21. Rad1 {[%clk 0:01:31.9]} 21... Bxc3 {[%clk 0:01:24.8]}
22. bxc3 {[%clk 0:01:31.7]} 22... Rxc3 {[%clk 0:01:25.7]} 23. Rd3 {[%clk
0:01:30.4]} 23... Bxf3+ {[%clk 0:01:22.4]} 24. Rxf3 {[%clk 0:01:20.7]} 24... Qb7
{[%clk 0:01:22.1]} 25. Rf1 {[%clk 0:01:08.7]} 25... Qc6 {[%clk 0:01:02.5]} 26.
Kh3 {[%clk 0:00:49.3]} 26... Rxc2 {[%clk 0:01:00.9]} 27. Qe1 {[%clk 0:00:20]}
27... Ng4 {[%clk 0:00:57]} 28. Bd2 {[%clk 0:00:17.1]} 28... Qd5 {[%clk
0:00:39.4]} 29. Rxf7 {[%clk 0:00:06.3]} 29... Rxd2 {[%clk 0:00:39]} 0-1

[Event "Early-Titled-Tuesday-Blitz-July-09-2024"]
[Site "Chess.com"]
[Date "2024.07.09"]
[Round "6"]
[White "IsuruAlahakoon"]
[Black "Timerkhanov"]
[Result "0-1"]
[WhiteElo "2436"]
[BlackElo "2665"]
[TimeControl "180+1"]
[EndTime "9:08:19 PDT"]
[Termination "Timerkhanov won on time"]

1. Nf3 {[%clk 0:03:00.9]} 1... d5 {[%clk 0:02:56.6]} 2. e3 {[%clk 0:03:00.4]}
2... Nf6 {[%clk 0:02:56.5]} 3. b3 {[%clk 0:02:59.8]} 3... c5 {[%clk 0:02:53.4]}
4. Bb2 {[%clk 0:02:59.6]} 4... Nc6 {[%clk 0:02:54]} 5. Bb5 {[%clk 0:02:58.6]}
5... Bd7 {[%clk 0:02:53.7]} 6. c4 {[%clk 0:02:56.9]} 6... e6 {[%clk 0:02:53.5]}
7. d3 {[%clk 0:02:56.6]} 7... a6 {[%clk 0:02:53]} 8. Bxc6 {[%clk 0:02:56.5]}
8... Bxc6 {[%clk 0:02:53.9]} 9. Ne5 {[%clk 0:02:55.4]} 9... Qc7 {[%clk
0:02:52.9]} 10. Nd2 {[%clk 0:02:52.2]} 10... Bd6 {[%clk 0:02:52.1]} 11. f4
{[%clk 0:02:51.5]} 11... dxc4 {[%clk 0:02:49.6]} 12. Nxc6 {[%clk 0:02:45.3]}
12... Qxc6 {[%clk 0:02:49]} 13. Nxc4 {[%clk 0:02:44.8]} 13... Qxg2 {[%clk
0:02:24]} 14. Nxd6+ {[%clk 0:02:27.6]} 14... Kd7 {[%clk 0:02:24]} 15. Rf1 {[%clk
0:02:11.6]} 15... Kxd6 {[%clk 0:02:22.5]} 16. Qc1 {[%clk 0:01:53.6]} 16... Rac8
{[%clk 0:02:19]} 17. Ba3 {[%clk 0:01:40.2]} 17... b6 {[%clk 0:02:10.2]} 18. Qc4
{[%clk 0:01:31.1]} 18... Nd5 {[%clk 0:02:07.4]} 19. Qe4 {[%clk 0:01:18.8]} 19...
Qxe4 {[%clk 0:01:34.7]} 20. dxe4 {[%clk 0:01:17.6]} 20... Nxe3 {[%clk 0:01:35]}
21. Rf2 {[%clk 0:01:10.3]} 21... f5 {[%clk 0:01:19.1]} 22. Re2 {[%clk
0:00:53.2]} 22... Ng4 {[%clk 0:01:18.5]} 23. O-O-O+ {[%clk 0:00:52.9]} 23... Kc6
{[%clk 0:01:13.2]} 24. exf5 {[%clk 0:00:44.1]} 24... exf5 {[%clk 0:01:14.1]} 25.
Re6+ {[%clk 0:00:43]} 25... Kb5 {[%clk 0:01:14]} 26. Rdd6 {[%clk 0:00:37.4]}
26... Rb8 {[%clk 0:01:14.1]} 27. Bb2 {[%clk 0:00:24.9]} 27... a5 {[%clk
0:01:14.3]} 28. Bxg7 {[%clk 0:00:17.2]} 28... Rhe8 {[%clk 0:01:12.2]} 29. Bc3
{[%clk 0:00:16.2]} 29... Rxe6 {[%clk 0:01:10.1]} 30. Rxe6 {[%clk 0:00:17.1]}
30... Nxh2 {[%clk 0:01:09.8]} 31. a4+ {[%clk 0:00:16.7]} 31... Ka6 {[%clk
0:01:09.1]} 32. Rh6 {[%clk 0:00:16.5]} 32... Ng4 {[%clk 0:01:06.5]} 33. Rxh7
{[%clk 0:00:17]} 33... Re8 {[%clk 0:01:05.4]} 34. Rf7 {[%clk 0:00:14]} 34... Re3
{[%clk 0:01:05.7]} 35. Kd2 {[%clk 0:00:13.1]} 35... Rh3 {[%clk 0:01:01.6]} 36.
Rxf5 {[%clk 0:00:12.8]} 36... Rh2+ {[%clk 0:01:01.9]} 37. Kd3 {[%clk 0:00:12.2]}
37... Rh3+ {[%clk 0:01:02.6]} 38. Kc4 {[%clk 0:00:11.7]} 38... Ne3+ {[%clk
0:01:02.7]} 0-1

[Event "Early-Titled-Tuesday-Blitz-July-09-2024"]
[Site "Chess.com"]
[Date "2024.07.09"]
[Round "6"]
[White "Ykow"]
[Black "rdarruda"]
[Result "1-0"]
[WhiteElo "2742"]
[BlackElo "2562"]
[TimeControl "180+1"]
[EndTime "9:08:20 PDT"]
[Termination "Ykow won by resignation"]

1. e4 {[%clk 0:03:00.9]} 1... c5 {[%clk 0:02:50.8]} 2. Nf3 {[%clk 0:03:00.2]}
2... Nc6 {[%clk 0:02:50.2]} 3. Bb5 {[%clk 0:02:59.6]} 3... g6 {[%clk 0:02:49.4]}
4. O-O {[%clk 0:02:58.8]} 4... Bg7 {[%clk 0:02:47.9]} 5. Re1 {[%clk 0:02:54.5]}
5... e5 {[%clk 0:02:47.7]} 6. Bxc6 {[%clk 0:02:47.7]} 6... bxc6 {[%clk
0:02:48.6]} 7. d3 {[%clk 0:02:48]} 7... d6 {[%clk 0:02:48.4]} 8. h3 {[%clk
0:02:45.6]} 8... Ne7 {[%clk 0:02:48.2]} 9. a3 {[%clk 0:02:35.9]} 9... O-O {[%clk
0:02:43.3]} 10. Nbd2 {[%clk 0:02:33.5]} 10... h6 {[%clk 0:02:41.1]} 11. b4
{[%clk 0:02:32.3]} 11... cxb4 {[%clk 0:02:40.5]} 12. axb4 {[%clk 0:02:31.9]}
12... Be6 {[%clk 0:02:36.9]} 13. Nc4 {[%clk 0:02:27]} 13... Qc7 {[%clk
0:02:33.5]} 14. Bd2 {[%clk 0:02:18.8]} 14... f5 {[%clk 0:02:30.8]} 15. exf5
{[%clk 0:02:09.1]} 15... gxf5 {[%clk 0:02:27.5]} 16. Bc3 {[%clk 0:02:06.8]}
16... Nd5 {[%clk 0:02:18.9]} 17. Bb2 {[%clk 0:02:01.5]} 17... Nxb4 {[%clk
0:02:13]} 18. Ba3 {[%clk 0:01:26.1]} 18... c5 {[%clk 0:02:12.6]} 19. c3 {[%clk
0:01:24.9]} 19... Nc6 {[%clk 0:02:06.2]} 20. Nfd2 {[%clk 0:01:24.2]} 20... Rfe8
{[%clk 0:01:44.7]} 21. Qh5 {[%clk 0:01:14.4]} 21... d5 {[%clk 0:01:40.5]} 22.
Ne3 {[%clk 0:01:12.7]} 22... Ne7 {[%clk 0:01:35.7]} 23. c4 {[%clk 0:01:04.5]}
23... d4 {[%clk 0:01:32.4]} 24. Nd5 {[%clk 0:01:04.3]} 24... Nxd5 {[%clk
0:01:32.1]} 25. cxd5 {[%clk 0:01:05.2]} 25... Bxd5 {[%clk 0:01:31.4]} 26. Qxf5
{[%clk 0:01:02.8]} 26... Rf8 {[%clk 0:01:27.5]} 27. Qg4 {[%clk 0:01:01.5]} 27...
Rac8 {[%clk 0:01:19.1]} 28. Qg3 {[%clk 0:00:48.6]} 28... Rfe8 {[%clk 0:00:55.5]}
29. Ne4 {[%clk 0:00:45.2]} 29... Bxe4 {[%clk 0:00:54.7]} 30. Rxe4 {[%clk
0:00:46.1]} 30... Qb7 {[%clk 0:00:43.9]} 31. Rg4 {[%clk 0:00:43.2]} 31... Kh7
{[%clk 0:00:39]} 32. Bc1 {[%clk 0:00:40.6]} 32... Rc6 {[%clk 0:00:33.7]} 33. Kh2
{[%clk 0:00:35.2]} 33... Re7 {[%clk 0:00:33.6]} 34. h4 {[%clk 0:00:28.5]} 34...
Rf7 {[%clk 0:00:33]} 35. h5 {[%clk 0:00:28.6]} 35... Qb8 {[%clk 0:00:28.9]} 36.
Rg6 {[%clk 0:00:24]} 36... Qc7 {[%clk 0:00:28.6]} 37. Rxa7 {[%clk 0:00:22.9]}
37... Qxa7 {[%clk 0:00:27.5]} 38. Rxc6 {[%clk 0:00:22.8]} 38... Rf5 {[%clk
0:00:27.2]} 39. Qg6+ {[%clk 0:00:22.8]} 39... Kh8 {[%clk 0:00:27.1]} 40. Qxf5
{[%clk 0:00:23.7]} 1-0

[Event "Early-Titled-Tuesday-Blitz-July-09-2024"]
[Site "Chess.com"]
[Date "2024.07.09"]
[Round "6"]
[White "nindjaxx8"]
[Black "jbking07"]
[Result "1-0"]
[WhiteElo "2709"]
[BlackElo "2474"]
[TimeControl "180+1"]
[EndTime "9:08:22 PDT"]
[Termination "nindjaxx8 won by resignation"]

1. d4 {[%clk 0:03:00.9]} 1... d5 {[%clk 0:02:59.4]} 2. c4 {[%clk 0:03:00.9]}
2... e6 {[%clk 0:02:59]} 3. Nc3 {[%clk 0:03:01.3]} 3... Nf6 {[%clk 0:02:58.7]}
4. cxd5 {[%clk 0:03:01.8]} 4... exd5 {[%clk 0:02:58.9]} 5. Nf3 {[%clk
0:03:02.2]} 5... c6 {[%clk 0:02:54.1]} 6. Bf4 {[%clk 0:03:01.4]} 6... Bf5 {[%clk
0:02:53.9]} 7. e3 {[%clk 0:03:01.7]} 7... Be7 {[%clk 0:02:52.9]} 8. Bd3 {[%clk
0:03:02.1]} 8... Bxd3 {[%clk 0:02:52.6]} 9. Qxd3 {[%clk 0:03:03]} 9... O-O
{[%clk 0:02:51.5]} 10. O-O {[%clk 0:03:03.7]} 10... Nh5 {[%clk 0:02:48]} 11. Bg3
{[%clk 0:03:03.6]} 11... Nxg3 {[%clk 0:02:46.7]} 12. hxg3 {[%clk 0:03:04.5]}
12... Nd7 {[%clk 0:02:43.7]} 13. Rab1 {[%clk 0:03:05.1]} 13... a5 {[%clk
0:02:39.8]} 14. a3 {[%clk 0:03:05]} 14... Qc7 {[%clk 0:02:28.1]} 15. Rfc1 {[%clk
0:03:04.4]} 15... Rfc8 {[%clk 0:02:23]} 16. Nxd5 {[%clk 0:03:03.9]} 16... Qd8
{[%clk 0:02:20.7]} 17. Nxe7+ {[%clk 0:03:02.6]} 17... Qxe7 {[%clk 0:02:21.6]}
18. b4 {[%clk 0:03:01.9]} 18... axb4 {[%clk 0:02:17]} 19. axb4 {[%clk
0:03:02.8]} 19... Nf6 {[%clk 0:02:02.8]} 20. b5 {[%clk 0:03:00.7]} 20... Ra2
{[%clk 0:01:57.1]} 21. bxc6 {[%clk 0:02:56.9]} 21... bxc6 {[%clk 0:01:56.4]} 22.
Ne5 {[%clk 0:02:53.4]} 22... Qe6 {[%clk 0:01:47.2]} 23. Rc2 {[%clk 0:02:18.1]}
23... Rxc2 {[%clk 0:01:26.5]} 24. Qxc2 {[%clk 0:02:19]} 24... Nd5 {[%clk
0:01:27.2]} 25. Rc1 {[%clk 0:02:16.1]} 25... f6 {[%clk 0:01:20.4]} 26. Nxc6
{[%clk 0:01:56.5]} 26... Kh8 {[%clk 0:01:20.6]} 27. Qc4 {[%clk 0:01:52]} 27...
Qd7 {[%clk 0:00:58.9]} 28. e4 {[%clk 0:01:47.2]} 28... Ne7 {[%clk 0:00:39.7]}
29. d5 {[%clk 0:01:46.8]} 29... Nxc6 {[%clk 0:00:39.8]} 30. dxc6 {[%clk
0:01:46.7]} 30... Qd6 {[%clk 0:00:38.7]} 31. Qd5 {[%clk 0:01:45.7]} 31... Qc7
{[%clk 0:00:36.4]} 32. Kh2 {[%clk 0:01:22.6]} 32... h6 {[%clk 0:00:27.8]} 33.
Qe6 {[%clk 0:01:13.5]} 33... Kh7 {[%clk 0:00:24.6]} 34. Rc5 {[%clk 0:01:09.8]}
34... Kh8 {[%clk 0:00:22.6]} 35. Rd5 {[%clk 0:01:07.8]} 35... Kh7 {[%clk
0:00:18.4]} 36. Rd6 {[%clk 0:00:52.4]} 36... Qb8 {[%clk 0:00:12.4]} 37. Rd7
{[%clk 0:00:50.7]} 37... Qb6 {[%clk 0:00:03.4]} 38. Rxg7+ {[%clk 0:00:50.5]}
38... Kxg7 {[%clk 0:00:03.7]} 39. Qxc8 {[%clk 0:00:51.4]} 1-0

[Event "Early-Titled-Tuesday-Blitz-July-09-2024"]
[Site "Chess.com"]
[Date "2024.07.09"]
[Round "6"]
[White "manitodeplomo"]
[Black "banjadvorovi"]
[Result "1-0"]
[WhiteElo "2595"]
[BlackElo "2428"]
[TimeControl "180+1"]
[EndTime "9:08:24 PDT"]
[Termination "manitodeplomo won by resignation"]

1. d4 {[%clk 0:02:48.5]} 1... Nf6 {[%clk 0:02:58.6]} 2. c4 {[%clk 0:02:47.6]}
2... c5 {[%clk 0:02:56.6]} 3. d5 {[%clk 0:02:47]} 3... e6 {[%clk 0:02:56.9]} 4.
Nc3 {[%clk 0:02:46.7]} 4... exd5 {[%clk 0:02:56.9]} 5. cxd5 {[%clk 0:02:47.6]}
5... d6 {[%clk 0:02:57.8]} 6. e4 {[%clk 0:02:46.3]} 6... g6 {[%clk 0:02:58.4]}
7. Nf3 {[%clk 0:02:44.1]} 7... Bg7 {[%clk 0:02:58.8]} 8. h3 {[%clk 0:02:43.3]}
8... O-O {[%clk 0:02:58.2]} 9. Bd3 {[%clk 0:02:41.1]} 9... b5 {[%clk 0:02:41.3]}
10. Nxb5 {[%clk 0:02:38]} 10... Nxe4 {[%clk 0:02:38.3]} 11. Bxe4 {[%clk
0:02:38.9]} 11... Re8 {[%clk 0:02:38.6]} 12. O-O {[%clk 0:02:33.5]} 12... Rxe4
{[%clk 0:02:37.8]} 13. Ng5 {[%clk 0:02:33.6]} 13... Rb4 {[%clk 0:02:32.2]} 14.
Qf3 {[%clk 0:02:31.4]} 14... Bf5 {[%clk 0:02:17.3]} 15. g4 {[%clk 0:02:22]}
15... Rxb5 {[%clk 0:02:15]} 16. gxf5 {[%clk 0:02:20.7]} 16... h6 {[%clk
0:02:13]} 17. Nxf7 {[%clk 0:02:10.4]} 17... Kxf7 {[%clk 0:02:04.5]} 18. fxg6+
{[%clk 0:02:08.9]} 18... Kg8 {[%clk 0:02:03.7]} 19. Qf7+ {[%clk 0:02:06]} 19...
Kh8 {[%clk 0:02:03.5]} 20. Bxh6 {[%clk 0:02:04.8]} 20... Qg8 {[%clk 0:01:18.5]}
21. Bxg7+ {[%clk 0:01:51.5]} 21... Qxg7 {[%clk 0:01:18.6]} 22. Qe8+ {[%clk
0:01:51.4]} 22... Qg8 {[%clk 0:01:19.2]} 23. Qxb5 {[%clk 0:01:48.4]} 23... Qxg6+
{[%clk 0:01:19.2]} 24. Kh2 {[%clk 0:01:48.3]} 24... Qf7 {[%clk 0:01:11.3]} 25.
f4 {[%clk 0:01:25.1]} 25... Nd7 {[%clk 0:01:07.6]} 26. Rae1 {[%clk 0:01:20.5]}
26... Rg8 {[%clk 0:00:38.3]} 27. Qd3 {[%clk 0:01:03]} 27... Nf6 {[%clk
0:00:19.5]} 28. Qf5 {[%clk 0:00:57.4]} 28... Rg6 {[%clk 0:00:08.7]} 29. Rg1
{[%clk 0:00:49.3]} 29... Rh6 {[%clk 0:00:03.4]} 30. Re6 {[%clk 0:00:34.8]} 30...
Ng4+ {[%clk 0:00:02.2]} 31. Qxg4 {[%clk 0:00:32.2]} 31... Rxe6 {[%clk
0:00:01.7]} 32. dxe6 {[%clk 0:00:31.5]} 1-0

[Event "Early-Titled-Tuesday-Blitz-July-09-2024"]
[Site "Chess.com"]
[Date "2024.07.09"]
[Round "6"]
[White "Iball95"]
[Black "jaskol95"]
[Result "0-1"]
[WhiteElo "2906"]
[BlackElo "2666"]
[TimeControl "180+1"]
[EndTime "9:08:25 PDT"]
[Termination "jaskol95 won by resignation"]

1. e4 {[%clk 0:03:00.9]} 1... c5 {[%clk 0:03:00.5]} 2. Nf3 {[%clk 0:03:01.1]}
2... e6 {[%clk 0:03:01.1]} 3. Nc3 {[%clk 0:03:01.5]} 3... Nc6 {[%clk 0:03:00.8]}
4. d4 {[%clk 0:03:01.8]} 4... cxd4 {[%clk 0:03:01.4]} 5. Nxd4 {[%clk 0:03:02.5]}
5... Qc7 {[%clk 0:03:01.7]} 6. Nxc6 {[%clk 0:03:02.2]} 6... Qxc6 {[%clk
0:03:01]} 7. Bd3 {[%clk 0:02:59.5]} 7... a6 {[%clk 0:02:56.4]} 8. O-O {[%clk
0:02:59.9]} 8... Qc7 {[%clk 0:02:56]} 9. Re1 {[%clk 0:03:00.2]} 9... Ne7 {[%clk
0:02:53]} 10. a4 {[%clk 0:02:51.6]} 10... b6 {[%clk 0:02:47.8]} 11. Qh5 {[%clk
0:02:49.2]} 11... Nc6 {[%clk 0:02:45.3]} 12. Bg5 {[%clk 0:02:33.9]} 12... g6
{[%clk 0:02:19.5]} 13. Nd5 {[%clk 0:01:47.4]} 13... exd5 {[%clk 0:02:09.3]} 14.
exd5+ {[%clk 0:01:48.3]} 14... Ne5 {[%clk 0:01:50.5]} 15. Qh4 {[%clk 0:01:25.8]}
15... Bg7 {[%clk 0:01:35]} 16. f4 {[%clk 0:01:23.8]} 16... O-O {[%clk
0:01:30.5]} 17. fxe5 {[%clk 0:01:23.6]} 17... Bxe5 {[%clk 0:01:12.9]} 18. Bf6
{[%clk 0:01:04.7]} 18... Bxf6 {[%clk 0:01:00.8]} 19. Qxf6 {[%clk 0:01:05.6]}
19... Bb7 {[%clk 0:00:51.5]} 20. c4 {[%clk 0:00:28.7]} 20... b5 {[%clk
0:00:51.8]} 21. axb5 {[%clk 0:00:27.3]} 21... axb5 {[%clk 0:00:51.8]} 22. Rxa8
{[%clk 0:00:28.1]} 22... Rxa8 {[%clk 0:00:48.5]} 23. b3 {[%clk 0:00:17.7]} 23...
bxc4 {[%clk 0:00:39.5]} 24. bxc4 {[%clk 0:00:18.6]} 24... Qc5+ {[%clk
0:00:34.6]} 25. Kh1 {[%clk 0:00:18.2]} 25... Qa3 {[%clk 0:00:24.9]} 26. Re7
{[%clk 0:00:09.5]} 26... Qa1+ {[%clk 0:00:18.7]} 27. Bf1 {[%clk 0:00:10.1]}
27... Qxf6 {[%clk 0:00:18.5]} 0-1

[Event "Early-Titled-Tuesday-Blitz-July-09-2024"]
[Site "Chess.com"]
[Date "2024.07.09"]
[Round "6"]
[White "Oleg_Papayan"]
[Black "snowlord"]
[Result "0-1"]
[WhiteElo "2588"]
[BlackElo "2921"]
[TimeControl "180+1"]
[EndTime "9:08:25 PDT"]
[Termination "snowlord won by resignation"]

1. d4 {[%clk 0:03:00.9]} 1... d6 {[%clk 0:02:55]} 2. Nc3 {[%clk 0:03:01.4]} 2...
Nf6 {[%clk 0:02:54.8]} 3. e4 {[%clk 0:02:59.9]} 3... e5 {[%clk 0:02:54.8]} 4.
dxe5 {[%clk 0:03:00.6]} 4... dxe5 {[%clk 0:02:55.2]} 5. Qxd8+ {[%clk 0:03:01.2]}
5... Kxd8 {[%clk 0:02:56.1]} 6. Bc4 {[%clk 0:03:01.4]} 6... Bb4 {[%clk
0:02:55.8]} 7. Bxf7 {[%clk 0:02:55.4]} 7... Nxe4 {[%clk 0:02:55]} 8. Ne2 {[%clk
0:02:56]} 8... Bf5 {[%clk 0:02:40.8]} 9. Be3 {[%clk 0:02:47.5]} 9... Nxc3 {[%clk
0:02:38.6]} 10. bxc3 {[%clk 0:02:43.6]} 10... Bd6 {[%clk 0:02:38.8]} 11. O-O-O
{[%clk 0:02:23.3]} 11... Rf8 {[%clk 0:02:32]} 12. Bd5 {[%clk 0:02:22.1]} 12...
Kc8 {[%clk 0:02:21.3]} 13. Ng3 {[%clk 0:02:22.5]} 13... Bd7 {[%clk 0:02:20.5]}
14. Be4 {[%clk 0:02:17.7]} 14... Bc6 {[%clk 0:02:04.7]} 15. f3 {[%clk
0:01:57.6]} 15... Bxe4 {[%clk 0:01:55.8]} 16. Nxe4 {[%clk 0:01:58.5]} 16... Ba3+
{[%clk 0:01:56.2]} 17. Kd2 {[%clk 0:01:49]} 17... Nd7 {[%clk 0:01:56.2]} 18. Ke2
{[%clk 0:01:42]} 18... b6 {[%clk 0:01:52.6]} 19. c4 {[%clk 0:01:17.3]} 19... Nf6
{[%clk 0:01:48.5]} 20. Rd3 {[%clk 0:01:11]} 20... Be7 {[%clk 0:01:44.6]} 21. Ng3
{[%clk 0:00:52.5]} 21... Kb7 {[%clk 0:01:40]} 22. Nf5 {[%clk 0:00:49.2]} 22...
Rf7 {[%clk 0:01:40.4]} 23. Rhd1 {[%clk 0:00:43.7]} 23... e4 {[%clk 0:01:37.5]}
24. fxe4 {[%clk 0:00:05.3]} 24... Nxe4 {[%clk 0:01:38.4]} 25. Nxe7 {[%clk
0:00:05]} 25... Rxe7 {[%clk 0:01:39.3]} 26. Rd7 {[%clk 0:00:03.5]} 26... Nc3+
{[%clk 0:01:38.6]} 27. Kf2 {[%clk 0:00:01.7]} 27... Nxd1+ {[%clk 0:01:35.7]} 28.
Rxd1 {[%clk 0:00:02.6]} 28... Rf8+ {[%clk 0:01:36]} 29. Ke2 {[%clk 0:00:03.2]}
29... Rfe8 {[%clk 0:01:36.7]} 30. Rd3 {[%clk 0:00:03.8]} 30... Re4 {[%clk
0:01:37.4]} 31. c5 {[%clk 0:00:03.8]} 31... Ra4 {[%clk 0:01:34.7]} 32. cxb6
{[%clk 0:00:03.4]} 32... axb6 {[%clk 0:01:35.6]} 33. a3 {[%clk 0:00:03.8]} 33...
Rg4 {[%clk 0:01:27.1]} 34. g3 {[%clk 0:00:03.7]} 34... Rc4 {[%clk 0:01:28]} 35.
c3 {[%clk 0:00:03.4]} 35... Ra4 {[%clk 0:01:27.9]} 36. Kf3 {[%clk 0:00:03.1]}
36... Rxa3 {[%clk 0:01:28]} 37. Bd4 {[%clk 0:00:03.3]} 37... g6 {[%clk
0:01:27.6]} 38. Kg4 {[%clk 0:00:03.6]} 38... c5 {[%clk 0:01:25.4]} 39. Bf6
{[%clk 0:00:03.4]} 39... Kc6 {[%clk 0:01:25.2]} 40. h4 {[%clk 0:00:02.7]} 40...
h6 {[%clk 0:01:16.3]} 41. h5 {[%clk 0:00:02.4]} 41... Re4+ {[%clk 0:01:15.3]}
42. Kf3 {[%clk 0:00:02.1]} 42... Re6 {[%clk 0:01:16.2]} 43. Bg7 {[%clk
0:00:01.5]} 43... gxh5 {[%clk 0:01:16.7]} 44. Kf4 {[%clk 0:00:02.1]} 44... Rg6
{[%clk 0:01:17]} 45. Be5 {[%clk 0:00:01.7]} 45... Rg4+ {[%clk 0:01:17.9]} 46.
Kf5 {[%clk 0:00:02]} 46... Kb5 {[%clk 0:01:18.6]} 47. Bf6 {[%clk 0:00:01.8]}
47... Kc4 {[%clk 0:01:18.8]} 48. Rd6 {[%clk 0:00:02]} 48... b5 {[%clk 0:01:18]}
49. Rc6 {[%clk 0:00:02.6]} 49... Rxg3 {[%clk 0:01:15.3]} 50. Be5 {[%clk
0:00:03.2]} 50... Rgxc3 {[%clk 0:01:15.2]} 51. Bxc3 {[%clk 0:00:03]} 51... Rxc3
{[%clk 0:01:16.1]} 52. Kg6 {[%clk 0:00:03.3]} 52... b4 {[%clk 0:01:17]} 53. Kxh6
{[%clk 0:00:03.8]} 53... Kb5 {[%clk 0:01:17.9]} 54. Kxh5 {[%clk 0:00:04.5]}
54... Kxc6 {[%clk 0:01:17.9]} 0-1